bitfinex/quotes_SOLUSD_20250920
["timestamp","ask_amount","ask_price","bid_price","bid_amount"]
[1758360295938,1.26433858,238.28,238.27,32.59]
[1758360297128,5.4610819,238.28,238.27,32.59]
[1758360297812,5.4610819,238.28,238.27,31.92]
[1758360298621,18.08017458,238.28,238.26,0.66]
[1758360298919,1.26433858,238.28,238.27,31.92]
[1758360299128,7.00293749,238.3,238.27,32.58]
[1758360299331,13.88343127,238.29,238.27,32.58]
[1758360300215,18.08010252,238.29,238.28,0.66]
[1758360301336,18.08010252,238.29,238.27,32.63]
[1758360302013,5.46100983,238.29,238.27,32.63]
[1758360302213,12.61909269,238.28,238.27,32.63]
[1758360302629,5.46100983,238.29,238.27,32.63]
[1758360303018,18.08010252,238.29,238.27,32.63]
[1758360304041,31.2,238.29,238.28,0.71]
[1758360315356,34.0118162,238.29,238.28,0.71]
[1758360315950,78.7,238.3,238.28,0.71]
[1758360316256,78.7,238.3,238.28,4.90674332]
[1758360316631,78.7,238.3,238.29,0.71]
[1758360316830,81.51221411,238.3,238.29,0.71]
[1758360318161,81.51221411,238.3,238.27,32.63]
[1758360318355,79.96433858,238.3,238.28,31.92]
[1758360319658,79.96433858,238.3,238.24,6.39022962]
[1758360319846,1.26433858,238.29,238.25,32.63]
[1758360320055,1.26433858,238.29,238.26,0.71]
[1758360321267,84.86073933,238.3,238.26,0.71]
[1758360323964,78.7,238.29,238.26,0.71]
[1758360325970,78.7,238.29,238.27,0.7]
[1758360326152,78.7,238.29,238.28,31.92]
[1758360326748,78.7,238.29,238.28,32.62]
[1758360327756,78.7,238.29,238.28,33.88433858]
[1758360327955,78.7,238.29,238.28,38.0810819]
[1758360329673,78.7,238.33,238.28,38.0810819]
[1758360329971,78.7,238.33,238.29,4.89640473]
[1758360330169,78.7,238.33,238.3,0.7]
[1758360330370,78.7,238.33,238.31,31.92]
[1758360330564,78.7,238.32,238.31,31.92]
[1758360334876,79.37,238.32,238.31,31.92]
[1758360336278,78.7,238.32,238.31,31.92]
[1758360337475,78.7,238.32,238.3,0.7]
[1758360337779,78.7,238.32,238.31,31.92]
[1758360340282,79.37,238.32,238.31,31.92]
[1758360341673,0.67,238.32,238.31,31.92]
[1758360342387,7.00634906,238.33,238.31,31.92]
[1758360342579,7.67634906,238.33,238.31,31.92]
[1758360345987,2.81045669,238.33,238.32,0.7]
[1758360346187,31.2,238.37,238.32,2.67455568]
[1758360346491,31.2,238.35,238.34,1.97455568]
[1758360346677,31.2,238.35,238.34,33.89455568]
[1758360347088,31.2,238.36,238.34,34.59455568]
[1758360347387,31.2,238.36,238.35,0.7]
[1758360349486,0.67,238.45,238.35,2.67455568]
[1758360349697,2.81087277,238.41,238.39,1.97455568]
[1758360349995,31.2,238.41,238.4,31.94]
[1758360350169,34.01087659,238.41,238.4,31.94]
[1758360352997,2.81087659,238.41,238.4,32.64]
[1758360353291,34.01087659,238.41,238.4,31.94]
[1758360353499,34.01087659,238.41,238.4,32.64]
[1758360354397,34.01087659,238.41,238.4,31.94]
[1758360355372,2.81087659,238.41,238.4,32.64]
[1758360355572,9.07972504,238.42,238.4,32.64]
[1758360356290,2.91087659,238.42,238.4,32.64]
[1758360356484,31.2,238.41,238.4,32.64]
[1758360356681,34.01087659,238.41,238.4,32.64]
[1758360361996,2.81087659,238.41,238.4,32.64]
[1758360362194,31.3,238.42,238.4,32.64]
[1758360362379,31.3,238.42,238.4,31.94]
[1758360362588,36.19429235,238.42,238.4,31.94]
[1758360363101,35.49429235,238.42,238.4,31.94]
[1758360363798,5.4805538,238.41,238.39,31.94]
[1758360364000,31.9,238.4,238.39,31.94]
[1758360364179,34.70599812,238.4,238.39,31.94]
[1758360364597,38.90062899,238.4,238.39,31.94]
[1758360366402,38.20062899,238.4,238.39,31.94]
[1758360367102,40.87518467,238.4,238.39,31.94]
[1758360367478,53.48897154,238.4,238.39,31.94]
[1758360367679,52.78897154,238.4,238.39,31.94]
[1758360367881,50.81441586,238.4,238.39,31.94]
[1758360368188,52.78897154,238.4,238.39,31.94]
[1758360368398,49.98297342,238.4,238.39,31.94]
[1758360368603,52.78950928,238.4,238.39,31.94]
[1758360370303,63.97608646,238.4,238.38,31.94]
[1758360370510,5.48109154,238.39,238.38,31.94]
[1758360370705,4.78109154,238.39,238.38,31.94]
[1758360371011,17.39540879,238.39,238.38,31.94]
[1758360371609,18.09540879,238.39,238.38,31.94]
[1758360372199,21.59021561,238.39,238.38,31.94]
[1758360372411,21.59021561,238.39,238.35,0.67]
[1758360372601,2.80653586,238.38,238.36,32.61]
[1758360372910,2.80653586,238.38,238.37,31.94]
[1758360373112,12.61484768,238.38,238.37,31.94]
[1758360373297,19.61636634,238.38,238.37,31.94]
[1758360375917,15.42138354,238.38,238.37,31.94]
[1758360376217,15.42138354,238.38,238.37,32.61]
[1758360376602,19.61636634,238.38,238.37,32.61]
[1758360378500,15.42138354,238.38,238.37,32.61]
[1758360381901,4.19460431,238.41,238.37,32.61]
[1758360382110,15.42298491,238.4,238.37,31.94]
[1758360382414,31.2,238.38,238.37,31.94]
[1758360382613,31.2,238.38,238.37,32.61]
[1758360383125,34.0102297,238.38,238.37,32.61]
[1758360386537,31.2,238.38,238.37,32.61]
[1758360388397,34.01189063,238.38,238.37,32.61]
[1758360399135,0.1,238.42,238.37,38.77971446]
[1758360399336,2.91394582,238.42,238.38,2.68455568]
[1758360399526,2.91394582,238.42,238.39,32.63]
[1758360399841,31.2,238.41,238.4,0.71]
[1758360400622,31.2,238.41,238.39,31.92]
[1758360400833,0.8,238.42,238.39,31.92]
[1758360401134,7.80764518,238.42,238.39,31.92]
[1758360401818,20.41984117,238.42,238.39,31.92]
[1758360402015,17.60650303,238.42,238.39,31.92]
[1758360402746,13.41219599,238.42,238.39,31.92]
[1758360402945,4.99429983,238.42,238.39,31.92]
[1758360403247,20.41883891,238.42,238.39,31.92]
[1758360403459,17.60649582,238.42,238.39,31.92]
[1758360403948,78.7,238.4,238.39,31.92]
[1758360404544,78.7,238.4,238.39,32.63]
[1758360405249,78.7,238.4,238.39,36.82480682]
[1758360405544,78.7,238.4,238.39,38.08748268]
[1758360406945,78.7,238.4,238.39,32.63]
[1758360407247,78.7,238.4,238.39,31.9]
[1758360407947,78.7,238.4,238.39,32.61]
[1758360408942,78.7,238.4,238.39,35.75196439]
[1758360410650,78.7,238.4,238.39,37.01464025]
[1758360410852,78.7,238.4,238.39,41.20944707]
[1758360416652,78.7,238.4,238.39,39.94677121]
[1758360416848,78.7,238.4,238.39,41.20944707]
[1758360432073,78.7,238.4,238.39,40.49944707]
[1758360435365,78.7,238.4,238.39,41.15944707]
[1758360438959,78.7,238.4,238.39,38.01748268]
[1758360439357,78.7,238.4,238.39,37.35748268]
[1758360439674,0.1,238.42,238.39,37.35748268]
[1758360439872,0.81,238.42,238.39,37.35748268]
[1758360440174,0.1,238.42,238.4,1.92267586]
[1758360440353,0.1,238.42,238.41,31.9]
[1758360445575,0.81,238.42,238.38,1.26267586]
[1758360445795,0.67,238.41,238.39,31.9]
[1758360445973,0.67,238.41,238.37,1.92267586]
[1758360446283,0.67,238.4,238.38,31.9]
[1758360446680,12.61219599,238.41,238.38,31.9]
[1758360447091,12.61219599,238.41,238.38,33.87267586]
[1758360449492,16.80665915,238.41,238.39,31.9]
[1758360450192,12.61219599,238.41,238.39,31.9]
[1758360451303,78.7,238.4,238.39,31.9]
[1758360456789,78.7,238.4,238.39,38.06748268]
[1758360463089,78.7,238.4,238.39,36.80480682]
[1758360463384,78.7,238.4,238.39,38.06748268]
[1758360463792,78.7,238.4,238.39,38.77727075]
[1758360467622,78.7,238.4,238.39,6.87727075]
[1758360467905,78.7,238.4,238.39,38.77727075]
[1758360468109,78.7,238.4,238.39,39.06159389]
[1758360469110,0.1,238.42,238.39,39.06159389]
[1758360469411,0.1,238.42,238.41,4.19445493]
[1758360469610,0.1,238.42,238.41,36.09445493]
[1758360472803,0.1,238.42,238.41,36.80445493]
[1758360475114,0.1,238.42,238.41,36.09445493]
[1758360478195,0.1,238.42,238.41,36.79445493]
[1758360487425,0.1,238.42,238.39,4.19463631]
[1758360487617,0.8,238.42,238.4,31.9]
[1758360487820,0.8,238.42,238.41,31.9]
[1758360488698,0.1,238.42,238.41,31.9]
[1758360489523,0.8,238.42,238.38,0.68]
[1758360489705,0.8,238.42,238.39,31.9]
[1758360490208,0.1,238.42,238.39,32.58]
[1758360492735,0.1,238.42,238.4,0.68]
[1758360492918,0.1,238.42,238.41,31.9]
[1758360493734,0.1,238.42,238.39,0.68]
[1758360493932,0.1,238.42,238.4,32.58]
[1758360494136,0.1,238.42,238.4,31.9]
[1758360494512,0.1,238.42,238.41,31.9]
[1758360498739,0.1,238.42,238.38,0.68]
[1758360499034,0.1,238.42,238.37,0.28432314]
[1758360499035,0.1,238.42,238.39,32.58]
[1758360499340,0.1,238.42,238.4,0.68]
[1758360499515,0.1,238.42,238.41,31.9]
[1758360505856,0.1,238.42,238.41,32.59]
[1758360508756,0.1,238.42,238.41,0.69]
[1758360508924,0.1,238.42,238.41,32.59]
[1758360512229,0.1,238.42,238.41,31.9]
[1758360513937,0.1,238.42,238.41,32.59]
[1758360514652,0.1,238.42,238.41,31.9]
[1758360523176,0.1,238.42,238.41,32.59]
[1758360525471,0.1,238.42,238.41,0.69]
[1758360525770,0.1,238.42,238.41,32.59]
[1758360527042,0.1,238.42,238.41,31.9]
[1758360527466,0.1,238.42,238.4,0.69]
[1758360527666,0.1,238.42,238.36,0.69]
[1758360527667,31.2,238.4,238.36,0.69]
[1758360527969,1.26252062,238.38,238.37,31.9]
[1758360528151,1.95252062,238.38,238.37,31.9]
[1758360528461,5.45750342,238.38,238.37,31.9]
[1758360528967,5.45750342,238.38,238.32,2.88230586]
[1758360528968,6.14750342,238.38,238.32,2.88230586]
[1758360529162,1.95252062,238.37,238.33,31.9]
[1758360529362,1.26252062,238.35,238.32,2.19230586]
[1758360529548,1.26252062,238.33,238.29,0.69]
[1758360529742,1.95252062,238.33,238.3,31.9]
[1758360530366,6.14840285,238.33,238.29,0.69]
[1758360530668,10.49324617,238.32,238.3,31.92]
[1758360532070,11.75576679,238.32,238.3,31.92]
[1758360532565,11.75576679,238.32,238.3,32.61]
[1758360533375,10.49324617,238.32,238.3,31.92]
[1758360533577,4.88588223,238.33,238.3,31.92]
[1758360533886,10.49324617,238.32,238.3,31.92]
[1758360534561,10.49324617,238.32,238.28,1.26252062]
[1758360534765,10.49324617,238.32,238.31,31.92]
[1758360540374,89.19324617,238.32,238.31,31.92]
[1758360544572,89.19324617,238.32,238.31,32.6]
[1758360545560,89.19324617,238.32,238.31,31.92]
[1758360547389,89.19324617,238.32,238.3,0.68]
[1758360547684,78.7,238.32,238.31,31.9]
[1758360547878,84.15925652,238.32,238.31,31.9]
[1758360549576,84.15925652,238.32,238.31,32.58]
[1758360549881,78.7,238.32,238.31,32.58]
[1758360550883,78.7,238.32,238.31,31.9]
[1758360551089,79.4,238.32,238.31,31.9]
[1758360551294,78.7,238.31,238.27,0.68]
[1758360551595,79.4,238.31,238.28,31.9]
[1758360552188,83.59629358,238.31,238.28,31.9]
[1758360552676,0.7,238.3,238.28,31.9]
[1758360552878,13.31750047,238.3,238.28,31.9]
[1758360553594,17.5139251,238.3,238.28,31.9]
[1758360553773,0.7,238.29,238.24,2.19299473]
[1758360553978,78.7,238.28,238.25,32.58]
[1758360554793,82.89687229,238.28,238.25,0.68]
[1758360554968,82.89687229,238.28,238.26,31.9]
[1758360555375,2.19299473,238.27,238.26,31.9]
[1758360555874,2.19299473,238.27,238.26,32.58]
[1758360556871,2.19299473,238.27,238.26,31.9]
[1758360557472,6.38995998,238.27,238.26,31.9]
[1758360559403,7.08995998,238.27,238.26,31.9]
[1758360559605,6.38995998,238.27,238.26,31.9]
[1758360562492,78.7,238.26,238.24,0.68]
[1758360562691,78.7,238.26,238.25,32.58]
[1758360567010,6.38995998,238.27,238.25,32.58]
[1758360570605,6.38995998,238.27,238.26,0.67]
[1758360571211,6.38995998,238.27,238.25,31.9]
[1758360571412,6.38995998,238.27,238.25,32.57]
[1758360574292,6.13948587,238.27,238.23,0.67]
[1758360574488,6.13948587,238.27,238.24,31.92]
[1758360574692,11.17111959,238.26,238.24,31.92]
[1758360576917,11.17111959,238.26,238.24,32.59]
[1758360576918,15.36835602,238.26,238.24,32.59]
[1758360577620,15.36835602,238.26,238.25,0.67]
[1758360580104,15.36835602,238.26,238.24,32.59]
[1758360580515,15.36835602,238.26,238.24,31.92]
[1758360582815,15.36835602,238.26,238.24,32.59]
[1758360583523,15.36835602,238.26,238.24,31.92]
[1758360583718,31.2,238.23,238.21,0.77]
[1758360583916,31.2,238.23,238.22,31.92]
[1758360584221,31.2,238.23,238.21,0.77]
[1758360584535,31.2,238.23,238.22,31.92]
[1758360586128,31.2,238.23,238.22,32.59]
[1758360587331,31.2,238.23,238.22,31.92]
[1758360588833,31.2,238.23,238.21,0.1]
[1758360589033,31.2,238.23,238.22,31.92]
[1758360590734,31.2,238.23,238.22,32.59]
[1758360591036,31.2,238.23,238.22,31.92]
[1758360593434,31.2,238.23,238.22,32.59]
[1758360602354,0.66,238.31,238.22,34.56595763]
[1758360602653,12.61962352,238.29,238.25,1.97595763]
[1758360602833,31.2,238.27,238.26,32.59]
[1758360603445,31.2,238.28,238.26,32.59]
[1758360603648,31.2,238.28,238.27,0.67]
[1758360604639,31.2,238.28,238.26,31.92]
[1758360605152,31.2,238.28,238.26,32.59]
[1758360605747,31.2,238.28,238.26,31.92]
[1758360605949,31.2,238.27,238.26,31.92]
[1758360608837,31.2,238.27,238.26,32.59]
[1758360610559,12.61962351,238.28,238.26,32.59]
[1758360612465,31.2,238.27,238.26,32.59]
[1758360618367,31.2,238.27,238.26,31.92]
[1758360619558,36.05691946,238.27,238.26,31.92]
[1758360619866,40.84882141,238.27,238.26,31.92]
[1758360620159,53.46950671,238.27,238.26,31.92]
[1758360622266,53.46950671,238.27,238.22,0.67]
[1758360622563,4.19727177,238.25,238.23,31.92]
[1758360622766,31.2,238.23,238.21,2.29334941]
[1758360622949,31.2,238.23,238.22,31.92]
[1758360623855,35.39762414,238.23,238.22,31.92]
[1758360626478,114.09762414,238.23,238.22,31.92]
[1758360626971,114.09762414,238.23,238.21,3.01334941]
[1758360627178,114.09762414,238.23,238.22,31.92]
[1758360628179,114.09762414,238.23,238.22,32.64]
[1758360629560,114.09762414,238.23,238.22,0.72]
[1758360629761,114.09762414,238.23,238.22,32.64]
[1758360629962,114.09762414,238.23,238.22,0.72]
[1758360630454,114.09762414,238.23,238.22,32.64]
[1758360631159,114.09762414,238.23,238.22,0.72]
[1758360631358,114.09762414,238.23,238.22,32.64]
[1758360631574,114.09762414,238.23,238.22,0.72]
[1758360631779,114.09762414,238.23,238.22,32.64]
[1758360632082,114.09762414,238.23,238.22,0.72]
[1758360632280,114.09762414,238.23,238.22,32.64]
[1758360635092,78.7,238.23,238.22,34.61595763]
[1758360638189,48.01832977,238.26,238.22,34.61595763]
[1758360638391,48.01832977,238.26,238.23,0.72]
[1758360638708,48.01832977,238.26,238.24,31.92]
[1758360640890,48.73832977,238.26,238.24,31.92]
[1758360641800,48.01832977,238.26,238.24,31.92]
[1758360641981,0.72,238.25,238.24,31.92]
[1758360642680,36.11727177,238.25,238.24,31.92]
[1758360642877,48.01795708,238.25,238.24,31.92]
[1758360643797,48.73795708,238.25,238.24,31.92]
[1758360644103,78.7,238.24,238.21,3.01334941]
[1758360644304,78.7,238.24,238.22,31.92]
[1758360645107,82.8975475,238.24,238.22,31.92]
[1758360645702,83.6175475,238.24,238.22,31.92]
[1758360646205,82.8975475,238.24,238.22,31.92]
[1758360646399,0.72,238.23,238.21,2.29334941]
[1758360646704,82.8975475,238.24,238.21,2.29334941]
[1758360646705,84.87350513,238.24,238.22,31.92]
[1758360646909,0.72,238.23,238.21,2.29334941]
[1758360647207,84.87350513,238.24,238.22,31.92]
[1758360647500,97.49472139,238.24,238.22,31.92]
[1758360647996,98.21472139,238.24,238.23,31.92]
[1758360648197,97.49472139,238.24,238.23,31.92]
[1758360648390,98.21472139,238.24,238.23,31.92]
[1758360649207,97.49472139,238.24,238.23,31.92]
[1758360649511,98.21472139,238.24,238.23,31.92]
[1758360649804,97.50352425,238.24,238.23,31.92]
[1758360650009,18.80352425,238.24,238.23,31.92]
[1758360651010,17.53876376,238.24,238.23,31.92]
[1758360651308,21.61897894,238.24,238.23,31.92]
[1758360652006,78.7,238.23,238.22,31.92]
[1758360652309,82.78021518,238.23,238.22,31.92]
[1758360652506,83.50021518,238.23,238.22,31.92]
[1758360652716,96.12355574,238.23,238.22,31.92]
[1758360652898,100.32117988,238.23,238.22,31.92]
[1758360656116,21.62117988,238.23,238.22,31.92]
[1758360656807,21.62117988,238.23,238.21,2.29334941]
[1758360657009,83.48021518,238.22,238.21,2.29334941]
[1758360657216,4.78021518,238.22,238.21,2.29334941]
[1758360657709,17.40461815,238.22,238.21,2.29334941]
[1758360658226,17.40461815,238.22,238.21,0.1]
[1758360658389,48.60461815,238.22,238.21,0.1]
[1758360658597,17.40461815,238.22,238.21,0.1]
[1758360658923,52.8024185,238.22,238.21,0.1]
[1758360659223,21.6024185,238.22,238.21,0.1]
[1758360659595,52.8024185,238.22,238.21,0.1]
[1758360659895,21.6024185,238.22,238.21,0.1]
[1758360660713,20.33765801,238.22,238.21,0.1]
[1758360660903,21.6024185,238.22,238.21,0.1]
[1758360661702,24.08462813,238.22,238.21,0.1]
[1758360661904,31.2,238.17,238.16,31.92]
[1758360662104,31.2,238.17,238.16,32.6]
[1758360662305,31.2,238.17,238.16,0.68]
[1758360662706,48.02467853,238.17,238.16,0.68]
[1758360665231,48.02467853,238.17,238.14,32.6]
[1758360665421,48.02467853,238.17,238.15,0.68]
[1758360665631,43.82599692,238.17,238.15,0.68]
[1758360665917,4.19817486,238.2,238.15,1.94476049]
[1758360666122,78.7,238.16,238.15,1.26476049]
[1758360666716,78.7,238.16,238.15,1.94476049]
[1758360667813,78.7,238.16,238.15,6.14379471]
[1758360669621,78.7,238.16,238.15,32.6]
[1758360669814,78.7,238.16,238.15,38.06379471]
[1758360670812,78.7,238.21,238.15,38.06379471]
[1758360671025,78.7,238.2,238.17,1.26476049]
[1758360671344,78.7,238.2,238.18,32.76]
[1758360671535,78.7,238.2,238.19,0.68]
[1758360676622,78.7,238.2,238.18,32.76]
[1758360676822,78.7,238.19,238.18,32.08]
[1758360677522,78.7,238.19,238.18,32.76]
[1758360684549,78.7,238.19,238.18,38.22326582]
[1758360686641,31.2,238.23,238.18,38.22326582]
[1758360686948,2.81225651,238.22,238.2,1.26476049]
[1758360687144,81.51225651,238.22,238.21,32.74]
[1758360687349,78.7,238.22,238.21,32.74]
[1758360687550,78.7,238.22,238.21,0.68]
[1758360687850,78.7,238.22,238.21,32.06]
[1758360688224,81.51320237,238.22,238.21,32.06]
[1758360688925,81.51320237,238.22,238.21,32.74]
[1758360689138,81.51326993,238.22,238.21,32.74]
[1758360690053,78.7,238.22,238.21,32.74]
[1758360690352,81.51408141,238.22,238.21,32.74]
[1758360691152,82.16408141,238.22,238.21,32.06]
[1758360691529,3.46408141,238.22,238.21,32.06]
[1758360693530,2.81408141,238.22,238.21,32.06]
[1758360697770,2.81408141,238.22,238.21,32.06]
[1758360698861,7.01188176,238.22,238.21,32.06]
[1758360699166,38.86188176,238.22,238.21,32.2]
[1758360699365,52.74998281,238.22,238.21,32.2]
[1758360699864,52.74998281,238.22,238.2,32.2]
[1758360700038,3.46408141,238.21,238.2,32.2]
[1758360700458,7.66205798,238.21,238.2,32.2]
[1758360700963,20.28592972,238.21,238.2,32.2]
[1758360701164,20.28592972,238.21,238.19,32.2]
[1758360701367,2.81408141,238.2,238.19,32.2]
[1758360702338,78.7,238.19,238.17,0.68]
[1758360702666,7.0143683,238.18,238.15,0.68]
[1758360702864,78.7,238.17,238.16,32.86]
[1758360706347,4.19850533,238.18,238.16,32.86]
[1758360706862,7.0149953,238.18,238.16,32.86]
[1758360707038,2.81648997,238.19,238.16,32.18]
[1758360707239,2.81648997,238.18,238.16,32.86]
[1758360708247,2.81648997,238.18,238.16,32.18]
[1758360708454,2.81648997,238.18,238.17,0.68]
[1758360708660,2.81648997,238.19,238.17,0.68]
[1758360708862,2.81648997,238.18,238.17,0.68]
[1758360709074,34.01648997,238.19,238.17,0.68]
[1758360709375,2.81648997,238.18,238.17,0.68]
[1758360712378,81.51648997,238.18,238.17,0.68]
[1758360713080,81.51648997,238.18,238.16,32.86]
[1758360713259,78.7,238.18,238.17,0.68]
[1758360713459,81.51701654,238.18,238.17,0.68]
[1758360717369,78.7,238.18,238.17,6.85512382]
[1758360717575,78.7,238.18,238.17,6.17512382]
[1758360717776,78.7,238.18,238.17,6.88512382]
[1758360721399,78.7,238.18,238.17,2.68644221]
[1758360722794,78.7,238.18,238.17,6.88512382]
[1758360722995,78.7,238.22,238.17,6.88512382]
[1758360723292,2.81704112,238.21,238.18,32.86]
[1758360723484,2.81704112,238.21,238.19,0.72]
[1758360723682,2.81704112,238.21,238.2,32.86]
[1758360724401,2.81704112,238.21,238.2,34.83644221]
[1758360724586,78.7,238.22,238.2,34.83644221]
[1758360725398,78.7,238.22,238.2,32.86]
[1758360725794,78.7,238.22,238.2,32.14]
[1758360726808,78.7,238.22,238.2,32.86]
[1758360726979,78.7,238.22,238.2,32.14]
[1758360727700,79.42,238.22,238.2,32.14]
[1758360728078,78.7,238.22,238.2,32.14]
[1758360728582,79.42,238.22,238.2,32.14]
[1758360729090,78.7,238.22,238.2,32.14]
[1758360729700,79.42,238.22,238.2,32.14]
[1758360730404,78.7,238.22,238.2,32.14]
[1758360731399,78.7,238.22,238.2,32.86]
[1758360731600,78.7,238.22,238.2,32.14]
[1758360740612,78.7,238.22,238.2,32.86]
[1758360743215,78.7,238.22,238.2,0.72]
[1758360743423,78.7,238.22,238.21,32.08]
[1758360743610,81.5160309,238.22,238.21,32.08]
[1758360744893,2.8160309,238.22,238.21,32.08]
[1758360745114,4.9174501,238.24,238.21,32.08]
[1758360745115,2.8160309,238.23,238.21,32.08]
[1758360745618,3.5360309,238.23,238.21,32.08]
[1758360746027,2.8160309,238.23,238.21,32.08]
[1758360746210,2.8160309,238.23,238.13,31.2]
[1758360746538,2.8160309,238.23,238.15,1.97644221]
[1758360746539,2.69644221,238.22,238.15,1.97644221]
[1758360746730,0.72,238.21,238.16,32.1]
[1758360747041,0.72,238.21,238.16,32.8]
[1758360747410,0.72,238.2,238.17,32.12]
[1758360747929,0.72,238.2,238.15,0.7]
[1758360748248,1.97644221,238.18,238.12,14.67016886]
[1758360748531,81.39644221,238.17,238.13,32.12]
[1758360748735,0.72,238.16,238.13,32.12]
[1758360749300,4.19921054,238.14,238.12,2.19373732]
[1758360749506,0.72,238.13,238.12,2.19373732]
[1758360749741,7.73400229,238.14,238.12,34.35373732]
[1758360751427,78.7,238.15,238.12,34.35373732]
[1758360751729,78.7,238.15,238.12,35.05373732]
[1758360752123,82.89905719,238.15,238.12,34.35373732]
[1758360752321,0.72,238.14,238.12,34.35373732]
[1758360752925,82.89905719,238.15,238.12,34.35373732]
[1758360753236,1.97644221,238.13,238.12,2.19373732]
[1758360753407,2.69644221,238.13,238.12,2.19373732]
[1758360753735,36.70822879,238.13,238.12,2.19373732]
[1758360753934,41.38417574,238.13,238.12,2.19373732]
[1758360754734,41.38417574,238.13,238.11,0.1]
[1758360755032,1.97644221,238.12,238.11,0.1]
[1758360755215,6.17600545,238.12,238.11,0.1]
[1758360755414,6.89600545,238.12,238.11,0.1]
[1758360756337,4.91956324,238.12,238.11,0.1]
[1758360756635,40.90476954,238.12,238.11,0.1]
[1758360757942,42.00476954,238.12,238.11,0.1]
[1758360758122,44.48697917,238.12,238.11,0.1]
[1758360761758,46.17115424,238.12,238.11,0.1]
[1758360763237,46.17115424,238.12,238.11,1e-08]
[1758360764240,60.05107139,238.12,238.11,1e-08]
[1758360765463,58.07462918,238.12,238.11,1e-08]
[1758360765663,60.05107139,238.12,238.11,1e-08]
[1758360767550,27.75107139,238.12,238.11,1e-08]
[1758360767862,60.01107139,238.12,238.11,1e-08]
[1758360768974,27.03107139,238.12,238.11,1e-08]
[1758360769157,59.29107139,238.12,238.11,1e-08]
[1758360769757,58.58120407,238.12,238.11,1e-08]
[1758360771458,11.17471203,238.12,238.11,0.70000001]
[1758360771658,9.63252283,238.12,238.11,0.70000001]
[1758360771869,40.83252283,238.12,238.11,0.70000001]
[1758360772237,39.56594794,238.12,238.11,0.70000001]
[1758360773244,40.83252283,238.12,238.11,0.70000001]
[1758360777939,40.83252283,238.12,238.11,1e-08]
[1758360778144,39.56594794,238.12,238.11,1e-08]
[1758360778555,40.83252283,238.12,238.11,1e-08]
[1758360785350,43.63503556,238.12,238.11,1e-08]
[1758360785762,44.34503556,238.12,238.11,1e-08]
[1758360786182,43.07846067,238.12,238.11,1e-08]
[1758360786555,44.34503556,238.12,238.11,1e-08]
[1758360787321,13.14503556,238.12,238.11,1e-08]
[1758360788094,15.14649204,238.11,238.1,1e-08]
[1758360788391,19.00054442,238.11,238.1,1e-08]
[1758360788561,22.19275405,238.11,238.1,1e-08]
[1758360788963,27.11172045,238.11,238.1,1e-08]
[1758360789391,28.79610828,238.11,238.1,1e-08]
[1758360789764,36.49524113,238.11,238.1,1e-08]
[1758360791584,32.99584789,238.11,238.1,1e-08]
[1758360792187,31.2,238.08,238.06,0.2]
[1758360792487,37.34062727,238.07,238.06,0.87]